fUSD/lending_fUSD_20260106
["ID","MTS","AMOUNT","RATE_DAILY","PERIOD"]
[400584885,1767733833781,-500.0,0.00016438,2]
[400584886,1767733833793,-500.0,0.00016438,2]
[400584887,1767733833803,-500.0,0.00016438,2]
[400584888,1767733833812,-500.0,0.00016438,2]
[400584889,1767733833822,-500.0,0.00016438,2]
[400584890,1767733833833,-500.0,0.00016438,2]
[400584891,1767733833842,-500.0,0.00016438,2]
[400584892,1767733833852,-500.0,0.00016438,2]
[400584893,1767733833862,-500.0,0.00016438,2]
[400584894,1767733833871,-500.0,0.00016438,2]
[400584895,1767733833881,-200.0,0.00016487,2]
[400584896,1767733833890,-500.0,0.00016487,2]
[400584897,1767733833899,-1510.72,0.00016496,2]
[400584898,1767733833909,-1000.0,0.000165,2]
[400584899,1767733833918,-151.0,0.00016504,2]
[400584900,1767733833928,-151.0,0.00016504,2]
[400584901,1767733833937,-151.35,0.00016506,2]
[400584902,1767733833947,-151.0,0.00016509,2]
[400584903,1767733833956,-151.0,0.00016509,2]
[400584904,1767733833965,-151.0,0.00016513,2]
[400584905,1767733833975,-151.0,0.00016513,2]
[400584906,1767733833984,-1000.0,0.000167,2]
[400584907,1767733833994,-1510.72,0.0001677,2]
[400584908,1767733834004,-250.0,0.00016785,2]
[400584909,1767733834013,-300.0,0.00016785,2]
[400584910,1767733834023,-300.0,0.00016785,2]
[400584911,1767733834032,-1264.7,0.00016892,2]
[400584912,1767733834041,-195.0,0.0001693,2]
[400584913,1767733834051,-250.0,0.00016931,2]
[400584914,1767733834060,-195.0,0.00016931,2]
[400584915,1767733834070,-2500.0,0.00016931,2]
[400584916,1767733834079,-600.0,0.00016931,2]
[400584917,1767733834089,-600.0,0.00016931,2]
[400584918,1767733834100,-250.0,0.00016931,2]
[400584919,1767733834109,-300.0,0.00016931,2]
[400584920,1767733834119,-195.0,0.00016931,2]
[400584921,1767733834128,-300.0,0.00016931,2]
[400584922,1767733834137,-193.0,0.00016931,2]
[400584923,1767733834147,-600.0,0.00016931,2]
[400584924,1767733834156,-510.0,0.00016972,2]
[400584925,1767733834166,-1000.0,0.00017,2]
[400584926,1767733834175,-200.0,0.00017035,2]
[400584927,1767733834185,-504.00666552,0.00017035,2]
[400584928,1767733834194,-1510.72,0.00017044,2]
[400584929,1767733834203,-1000.0,0.000172,2]
[400584930,1767733834213,-1510.72,0.00017318,2]
[400584931,1767733834222,-420.0,0.00017318,2]
[400584932,1767733834231,-600.0,0.00017324,2]
[400584933,1767733834242,-1000.0,0.0001733,2]
[400584934,1767733834251,-1680.0,0.00017405,2]
[400584935,1767733834261,-300.0,0.00017421,2]
[400584936,1767733834271,-195.0,0.00017421,2]
[400584937,1767733834285,-2500.0,0.00017421,2]
[400584938,1767733834295,-1000.0,0.000175,2]
[400584939,1767733834305,-200.0,0.00017583,2]
[400584940,1767733834314,-1510.72,0.00017592,2]
[400584941,1767733834326,-1000.0,0.000177,2]
[400584942,1767733834335,-1510.72,0.00017866,2]
[400584943,1767733834346,-258.31,0.0001795,2]
[400584944,1767733834358,-500.0,0.00017972,2]
[400584945,1767733834367,-500.0,0.00017973,2]
[400584946,1767733834378,-500.0,0.00017973,2]
[400584947,1767733834387,-500.0,0.00017973,2]
[400584948,1767733834397,-500.0,0.00017973,2]
[400584949,1767733834406,-500.0,0.00017973,2]
[400584950,1767733834415,-500.0,0.00017973,2]
[400584951,1767733834426,-500.0,0.00017973,2]
[400584952,1767733834435,-224.32236882,0.00017973,2]
[400584953,1767733834444,-500.0,0.00017973,2]
[400584954,1767733834453,-500.0,0.00017973,2]
[400584955,1767733834463,-500.0,0.00017973,2]
[400584956,1767733834472,-500.0,0.00017973,2]
[400584957,1767733834481,-552.34523698,0.00017973,2]
[400584958,1767733834491,-500.0,0.00017973,2]
[400584959,1767733834501,-500.0,0.00017973,2]
[400584960,1767733834510,-500.0,0.00017973,2]
[400584961,1767733834519,-500.0,0.00017973,2]
[400584962,1767733834528,-500.0,0.00017973,2]
[400584963,1767733834538,-500.0,0.00017973,2]
[400584964,1767733834547,-500.0,0.00017973,2]
[400584965,1767733834558,-500.0,0.00017973,2]
[400584966,1767733834567,-500.0,0.00017973,2]
[400584967,1767733834577,-518.39951694,0.00017973,2]
[400584968,1767733834587,-1000.0,0.00018,2]
[400584969,1767733834596,-6901.51381666,0.00018045,2]
[400584970,1767733834606,-167.15,0.00018046,2]
[400584971,1767733834615,-201.8815823,0.00018131,2]
[400584972,1767733834625,-1510.72,0.0001814,2]
[400584973,1767733834635,-166.66,0.0001816,2]
[400584974,1767733834644,-540.0,0.00018176,2]
[400584975,1767733834654,-1000.0,0.000182,2]
[400584976,1767733834664,-1510.72,0.00018414,2]
[400584977,1767733834673,-1000.0,0.000185,2]
[400584978,1767733834682,-911.41313033,0.00018521,2]
[400584979,1767733834691,-665.44014237,0.00018521,2]
[400584980,1767733834700,-1000.0,0.00018521,2]
[400584981,1767733834710,-1000.0,0.00018521,2]
[400584982,1767733834720,-1000.0,0.00018521,2]
[400584983,1767733834729,-228.36321658,0.00018521,2]
[400584984,1767733834738,-1000.0,0.00018521,2]
[400584985,1767733834747,-1000.0,0.00018521,2]
[400584986,1767733834757,-1000.0,0.00018521,2]
[400584987,1767733834767,-1000.0,0.00018521,2]
[400584988,1767733834776,-505.83293522,0.00018521,2]
[400584989,1767733834786,-1000.0,0.00018521,2]
[400584990,1767733834795,-505.89055766,0.00018521,2]
[400584991,1767733834804,-1000.0,0.00018521,2]
[400584992,1767733834814,-1000.0,0.00018521,2]
[400584993,1767733834823,-1000.0,0.00018521,2]
[400584994,1767733834832,-1000.0,0.00018521,2]
[400584995,1767733834843,-1000.0,0.00018521,2]
[400584996,1767733834853,-516.59149792,0.00018521,2]
[400584997,1767733834863,-216.26276468,0.00018678,2]
[400584998,1767733834873,-1510.72,0.00018688,2]
[400584999,1767733834883,-1000.0,0.000187,2]
[400585000,1767733834892,-166.66,0.00018759,2]
[400585001,1767733834902,-4814.55666367,0.00018908,2]
[400585002,1767733834911,-14842.29556854,0.00018908,2]
[400585003,1767733834920,-587.0,0.00018937,2]
[400585004,1767733834930,-1510.75673601,0.00018962,2]
[400585005,1767733834940,-1000.0,0.00019,2]
[400585006,1767733834949,-1264.7,0.00019004,2]
[400585007,1767733834958,-500.9026043,0.00019068,2]
[400585008,1767733834968,-1500.0,0.00019068,2]
[400585009,1767733835158,-501.17648911,0.00019068,2]
[400585010,1767733835172,-1500.0,0.00019068,2]
[400585011,1767733835182,-502.40698527,0.00019068,2]
[400585012,1767733835191,-1500.0,0.00019068,2]
[400585013,1767733835201,-501.25165524,0.00019068,2]
[400585014,1767733835211,-1500.0,0.00019068,2]
[400585015,1767733835220,-500.0,0.00019068,2]
[400585016,1767733835230,-1500.0,0.00019068,2]
[400585017,1767733835240,-1500.0,0.00019068,2]
[400585018,1767733835250,-1202.51911864,0.00019068,2]
[400585019,1767733835260,-501.06710829,0.00019068,2]
[400585020,1767733835270,-2351.0,0.00019128,2]
[400585021,1767733835280,-1000.0,0.000192,2]
[400585022,1767733835290,-1000.0,0.00019255,2]
[400585023,1767733835300,-166.66,0.00019359,2]
[400585024,1767733835309,-452.6197142,0.00019616,2]
[400585025,1767733835319,-2000.0,0.00019616,2]
[400585026,1767733835329,-737.07480166,0.00019616,2]
[400585027,1767733835339,-2003.93563554,0.00019616,2]
[400585028,1767733835351,-596.90998776,0.00019616,2]
[400585029,1767733835361,-2000.0,0.00019616,2]
[400585030,1767733835370,-215.91,0.00019628,2]
[400585031,1767733835380,-164.66,0.00019637,2]
[400585032,1767733835389,-1000.0,0.000197,2]
[400585033,1767733835398,-1180.21,0.00019715,2]
[400585034,1767733835407,-3415.49,0.00019763,2]
[400585035,1767733835417,-166.66,0.00019958,2]
[400585036,1767733835427,-500.0,0.00019973,2]
[400585037,1767733835436,-500.0,0.00019973,2]
[400585038,1767733835445,-500.0,0.00019973,2]
[400585039,1767733835455,-500.0,0.00019973,2]
[400585040,1767733835464,-500.0,0.00019973,2]
[400585041,1767733835473,-500.0,0.00019973,2]
[400585042,1767733835482,-162.64594824,0.00019973,2]
[400585043,1767733835491,-162.75708807,0.00019973,2]
[400585044,1767733835500,-500.0,0.00019973,2]
[400585045,1767733835509,-500.0,0.00019973,2]
[400585046,1767733835519,-500.0,0.00019973,2]
[400585047,1767733835528,-500.0,0.00019973,2]
[400585048,1767733835538,-571.61330735,0.00019973,2]
[400585049,1767733835547,-500.0,0.00019973,2]
[400585050,1767733835557,-500.0,0.00019973,2]
[400585051,1767733835567,-501.86729539,0.00019973,2]
[400585052,1767733835576,-501.03208473,0.00019973,2]
[400585053,1767733835586,-500.0,0.00019973,2]
[400585054,1767733835595,-500.0,0.00019973,2]
[400585055,1767733835605,-500.0,0.00019973,2]
[400585056,1767733835614,-500.0,0.00019973,2]
[400585057,1767733835624,-500.0,0.00019973,2]
[400585058,1767733835633,-500.0,0.00019973,2]
[400585059,1767733835643,-520.05691851,0.00019973,2]
[400585060,1767733835652,-335.39255931,0.00019973,2]
[400585061,1767733835661,-500.0,0.00019973,2]
[400585062,1767733835671,-500.0,0.00019973,2]
[400585063,1767733835681,-557.25951584,0.00019973,2]
[400585064,1767733835691,-500.0,0.00019973,2]
[400585065,1767733835700,-500.0,0.00019973,2]
[400585066,1767733835710,-500.0,0.00019973,2]
[400585067,1767733835719,-156.89496894,0.00019973,2]
[400585068,1767733835729,-500.0,0.00019973,2]
[400585069,1767733835738,-500.0,0.00019973,2]
[400585070,1767733835748,-500.0,0.00019973,2]
[400585071,1767733835757,-500.815548,0.00019973,2]
[400585072,1767733835766,-500.0,0.00019973,2]
[400585073,1767733835776,-500.0,0.00019973,2]
[400585074,1767733835785,-500.0,0.00019973,2]
[400585075,1767733835795,-500.0,0.00019973,2]
[400585076,1767733835804,-500.0,0.00019973,2]
[400585077,1767733835814,-510.33159281,0.00019973,2]
[400585078,1767733835823,-500.0,0.00019973,2]
[400585079,1767733835833,-161.4599478,0.00019973,2]
[400585080,1767733835843,-484.20975983,0.00019973,2]
[400585081,1767733835855,-500.0,0.00019973,2]
[400585082,1767733835864,-469.65305736,0.00019973,2]
[400585083,1767733835876,-524.23019632,0.00019973,2]
[400585084,1767733835886,-500.0,0.00019973,2]
[400585085,1767733835896,-162.01757701,0.00019973,2]
[400585086,1767733835906,-500.0,0.00019973,2]
[400585087,1767733835916,-500.0,0.00019973,2]
[400585088,1767733835926,-500.0,0.00019973,2]
[400585089,1767733835936,-167.31133184,0.00019973,2]
[400585090,1767733835946,-500.0,0.00019973,2]
[400585091,1767733835958,-500.0,0.00019973,2]
[400585092,1767733835968,-500.0,0.00019973,2]
[400585093,1767733835978,-510.73735296,0.00019973,2]
[400585094,1767733835988,-500.0,0.00019973,2]
[400585095,1767733835998,-500.0,0.00019973,2]
[400585096,1767733836007,-500.0,0.00019973,2]
[400585097,1767733836017,-178.52671345,0.00019973,2]
[400585098,1767733836035,-500.0,0.00019973,2]
[400585099,1767733836047,-164.10524853,0.00019973,2]
[400585100,1767733836056,-500.0,0.00019973,2]
[400585101,1767733836066,-500.0,0.00019973,2]
[400585102,1767733836076,-207.95982473,0.00019973,2]
[400585103,1767733836086,-375.23723038,0.00019973,2]
[400585104,1767733836098,-500.0,0.00019973,2]
[400585105,1767733836107,-160.57760784,0.00019973,2]
[400585106,1767733836118,-500.0,0.00019973,2]
[400585107,1767733836128,-169.01681291,0.00019973,2]
[400585108,1767733836139,-500.0,0.00019973,2]
[400585109,1767733836149,-165.9677284,0.00019973,2]
[400585110,1767733836159,-308.02826379,0.00019973,2]
[400585111,1767733836170,-500.0,0.00019973,2]
[400585112,1767733836180,-283.2821344,0.00019973,2]
[400585113,1767733836191,-165.23613821,0.00019973,2]
[400585114,1767733836204,-500.0,0.00019973,2]
[400585115,1767733836217,-500.0,0.00019973,2]
[400585116,1767733836227,-500.0,0.00019973,2]
[400585117,1767733836237,-500.0,0.00019973,2]
[400585118,1767733836248,-500.0,0.00019973,2]
[400585119,1767733836258,-507.38261444,0.00019973,2]
[400585120,1767733836268,-500.0,0.00019973,2]
[400585121,1767733836279,-500.0,0.00019973,2]
[400585122,1767733836292,-1000.0,0.0002,2]
[400585123,1767733836303,-5356.0870361,0.0002,2]
[400585124,1767733836315,-793.0,0.00020007,2]
[400585125,1767733836327,-1500.0,0.00020164,2]
[400585126,1767733836338,-2500.0,0.00020164,2]
[400585127,1767733836352,-793.0,0.00020192,2]
[400585128,1767733836363,-891.74987257,0.000202,2]
[400585129,1767733836821,-108.25012743,0.000202,2]
[400585130,1767733836832,-793.0,0.00020256,2]
[400585131,1767733836841,-793.0,0.00020313,2]
[400585132,1767733836852,-793.0,0.00020363,2]
[400585133,1767733836861,-793.0,0.000204,2]
[400585134,1767733836870,-3736.4505,0.00020421,2]
[400585135,1767733836880,-793.0,0.000205,2]
[400585136,1767733836889,-1001.23557453,0.00020521,2]
[400585137,1767733836899,-278.74307495,0.00020521,2]
[400585138,1767733836909,-1002.49264385,0.00020521,2]
[400585139,1767733836919,-1001.63805669,0.00020521,2]
[400585140,1767733836928,-1001.80133241,0.00020521,2]
[400585141,1767733836938,-1002.1413462,0.00020521,2]
[400585142,1767733836948,-609.74056714,0.00020521,2]
[400585143,1767733836958,-1000.0,0.00020521,2]
[400585144,1767733836968,-1000.0,0.00020521,2]
[400585145,1767733836977,-1000.0,0.00020521,2]
[400585146,1767733836988,-514.89956747,0.00020521,2]
[400585147,1767733836997,-784.91621225,0.00020521,2]
[400585148,1767733837009,-215.08378775,0.00020521,2]
[400585149,1767733837018,-1002.10638129,0.00020521,2]
[400585150,1767733837028,-1000.0,0.00020521,2]
[400585151,1767733837037,-1000.0,0.00020521,2]
[400585152,1767733837046,-286.52563142,0.00020521,2]
[400585153,1767733837055,-1000.0,0.00020521,2]
[400585154,1767733837065,-1000.0,0.00020521,2]
[400585155,1767733837075,-168.23151009,0.00020521,2]
[400585156,1767733837085,-1000.0,0.00020521,2]
[400585157,1767733837094,-1000.0,0.00020521,2]
[400585158,1767733837103,-1000.0,0.00020521,2]
[400585159,1767733837113,-1000.0,0.00020521,2]
[400585160,1767733837122,-1000.61424225,0.00020521,2]
[400585161,1767733837131,-500.801884,0.00020521,2]
[400585162,1767733837141,-1001.82128639,0.00020521,2]
[400585163,1767733837150,-1000.0,0.00020521,2]
[400585164,1767733837160,-194.75564205,0.00020521,2]
[400585165,1767733837169,-1000.0,0.00020521,2]
[400585166,1767733837178,-932.597556,0.00020521,2]
[400585167,1767733837188,-690.66835614,0.00020521,2]
[400585168,1767733837197,-1000.0,0.00020521,2]
[400585169,1767733837206,-1000.0,0.00020521,2]
[400585170,1767733837216,-1087.43896406,0.00020521,2]
[400585171,1767733837226,-1000.0,0.00020521,2]
[400585172,1767733837236,-500.0,0.00020521,2]
[400585173,1767733837246,-1000.0,0.00020521,2]
[400585174,1767733837256,-1000.0,0.00020521,2]
[400585175,1767733837266,-1000.0,0.00020521,2]
[400585176,1767733837276,-577.63829625,0.00020521,2]
[400585177,1767733837289,-428.91151684,0.00020521,2]
[400585178,1767733837299,-1000.0,0.00020521,2]
[400585179,1767733837308,-397.67768692,0.00020521,2]
[400585180,1767733837317,-1001.24603773,0.00020521,2]
[400585181,1767733837329,-1000.0,0.00020521,2]
[400585182,1767733837338,-1000.0,0.00020521,2]
[400585183,1767733837349,-1000.0,0.00020521,2]
[400585184,1767733837359,-1000.0,0.00020521,2]
[400585185,1767733837369,-1000.0,0.00020521,2]
[400585186,1767733837379,-545.59988784,0.00020521,2]
[400585187,1767733837388,-1000.0,0.00020521,2]
[400585188,1767733837396,-1000.0,0.00020521,2]
[400585189,1767733837406,-1000.0,0.00020521,2]
[400585190,1767733837417,-1001.32610001,0.00020521,2]
[400585191,1767733837426,-182.50256145,0.00020521,2]
[400585192,1767733837435,-570.38444001,0.00020521,2]
[400585193,1767733837444,-1000.0,0.00020521,2]
[400585194,1767733837454,-793.0,0.00020557,2]
[400585195,1767733837464,-166.66,0.00020558,2]
[400585196,1767733837474,-3388.2,0.00020619,2]
[400585197,1767733837484,-1000.0,0.000207,2]
[400585198,1767733837493,-823.0,0.00020708,2]
[400585199,1767733837503,-728.70627457,0.00020712,2]
[400585200,1767733837512,-793.0,0.00020751,2]
[400585201,1767733837522,-793.0,0.0002078,2]
[400585202,1767733837531,-250.0,0.0002081,2]
[400585203,1767733837540,-793.0,0.00020863,2]
[400585204,1767733837550,-793.0,0.00020898,2]
[400585205,1767733837559,-400.05,0.00021,7]
[400585206,1767733837805,-3292.0,0.00021022,2]
[400585207,1767733837815,-164.66,0.0002104,2]
[400585208,1767733837824,-500.0,0.00021068,2]
[400585209,1767733837834,-506.60230757,0.00021068,2]
[400585210,1767733837843,-644.24700672,0.00021068,2]
[400585211,1767733837853,-1004.37146787,0.00021068,2]
[400585212,1767733837862,-410.11880643,0.00021068,2]
[400585213,1767733837872,-500.0,0.00021068,2]
[400585214,1767733837881,-506.39418911,0.00021068,2]
[400585215,1767733837891,-500.0,0.00021068,2]
[400585216,1767733837901,-555.32695462,0.00021068,2]
[400585217,1767733837910,-500.0,0.00021068,2]
[400585218,1767733837919,-1000.0,0.00021068,2]
[400585219,1767733837929,-1500.0,0.00021068,2]
[400585220,1767733837938,-524.74378728,0.00021068,2]
[400585221,1767733837947,-699.12605601,0.00021068,2]
[400585222,1767733837956,-664.1404911,0.00021068,2]
[400585223,1767733837966,-1500.0,0.00021068,2]
[400585224,1767733837975,-1011.19854706,0.00021068,2]
[400585225,1767733837985,-500.0,0.00021068,2]
[400585226,1767733837994,-799.69681473,0.00021068,2]
[400585227,1767733838004,-380.26169935,0.00021068,2]
[400585228,1767733838015,-640.98789269,0.00021068,2]
[400585229,1767733838025,-680.55592777,0.00021068,2]
[400585230,1767733838035,-1300.62207839,0.00021068,2]
[400585231,1767733838045,-1500.0,0.00021068,2]
[400585232,1767733838055,-1396.75431619,0.00021068,2]
[400585233,1767733838132,-103.24568381,0.00021068,2]
[400585234,1767733838144,-756.88538407,0.00021068,2]
[400585235,1767733838200,-743.11461593,0.00021068,2]
[400585236,1767733838210,-793.0,0.00021113,2]
[400585237,1767733838221,-793.0,0.00021114,2]
[400585238,1767733838231,-1264.7,0.00021115,2]
[400585239,1767733838242,-793.0,0.00021133,2]
[400585240,1767733838252,-166.66,0.00021157,2]
[400585241,1767733838261,-793.0,0.00021164,2]
[400585242,1767733838272,-1000.0,0.00021181,2]
[400585243,1767733838285,-1000.0,0.000212,2]
[400585244,1767733838297,-793.0,0.00021214,2]
[400585245,1767733838307,-793.0,0.00021255,2]
[400585246,1767733838319,-793.0,0.0002131,2]
[400585247,1767733838329,-793.0,0.00021339,2]
[400585248,1767733838339,-793.0,0.00021385,2]
[400585249,1767733838349,-793.0,0.00021463,2]
[400585250,1767733838360,-793.0,0.00021515,2]
[400585251,1767733838370,-723.90239833,0.0002159,2]
[400585252,1767733838381,-500.0,0.00021616,2]
[400585253,1767733838391,-2000.0,0.00021616,2]
[400585254,1767733838401,-1000.0,0.00021616,2]
[400585255,1767733838411,-1002.71068525,0.00021616,2]
[400585256,1767733838422,-793.0,0.00021636,2]
[400585257,1767733838432,-793.0,0.00021653,2]
[400585258,1767733838441,-1000.0,0.000217,2]
[400585259,1767733838451,-500.0,0.00021731,2]
[400585260,1767733838461,-5000.0,0.00021918,2]
[400585261,1767733838470,-500.0,0.00021918,2]
[400585262,1767733838480,-500.0,0.00021918,2]
[400585263,1767733838490,-500.0,0.00021918,2]
[400585264,1767733838500,-500.0,0.00021918,2]
[400585265,1767733838509,-500.0,0.00021918,2]
[400585266,1767733838519,-377.15973416,0.00021918,2]
[400585267,1767733838528,-500.0,0.00021918,2]
[400585268,1767733838538,-500.0,0.00021918,2]
[400585269,1767733838547,-500.0,0.00021918,2]
[400585270,1767733838557,-500.0,0.00021918,2]
[400585271,1767733838566,-500.0,0.00021918,2]
[400585272,1767733838576,-500.0,0.00021918,2]
[400585273,1767733838586,-500.0,0.00021918,2]
[400585274,1767733838595,-500.0,0.00021918,2]
[400585275,1767733838605,-500.0,0.00021918,2]
[400585276,1767733838614,-500.0,0.00021918,2]
[400585277,1767733838624,-500.0,0.00021918,2]
[400585278,1767733838634,-500.0,0.00021918,2]
[400585279,1767733838644,-500.0,0.00021918,2]
[400585280,1767733838654,-500.0,0.00021918,2]
[400585281,1767733838663,-500.0,0.00021918,2]
[400585282,1767733838673,-500.0,0.00021918,2]
[400585283,1767733838682,-500.0,0.00021918,2]
[400585284,1767733838692,-500.0,0.00021918,2]
[400585285,1767733838701,-500.0,0.00021918,2]
[400585286,1767733838711,-500.0,0.00021918,2]
[400585287,1767733838721,-500.0,0.00021918,2]
[400585288,1767733838730,-500.0,0.00021918,2]
[400585289,1767733838740,-500.0,0.00021918,2]
[400585290,1767733838749,-500.0,0.00021918,2]
[400585291,1767733838759,-180.23219059,0.00021918,2]
[400585292,1767733838771,-319.76780941,0.00021918,2]
[400585293,1767733838781,-500.0,0.00021918,2]
[400585294,1767733838790,-300.0,0.00021918,2]
[400585295,1767733838800,-500.0,0.00021918,2]
[400585296,1767733838810,-500.0,0.00021918,2]
[400585297,1767733838820,-160.08887152,0.00021918,2]
[400585298,1767733838832,-108.10249614,0.00021918,2]
[400585299,1767733838842,-386.80802747,0.00021918,2]
[400585300,1767733838858,-3957.7531712,0.0002192,2]
[400585301,1767733838914,-288.10200457,0.0002192,2]
[400585302,1767733838926,-552.02375502,0.0002192,2]
[400585303,1767733838942,-152.46106921,0.0002192,2]
[400585304,1767733838951,-531.39264983,0.0002192,2]
[400585305,1767733838962,-364.72373208,0.0002192,2]
[400585321,1767733841109,-227.90933685,0.00016931,2]
[400585322,1767733841119,-1310.75386399,0.0002192,2]
[400585323,1767733841130,-575.11999978,0.0002192,2]
[400585324,1767733841161,-1285.24910324,0.0002192,2]
[400585325,1767733841172,-883.10065108,0.0002192,2]
[400585326,1767733841182,-4814.55666367,0.00021967,2]
[400585327,1767733841191,-14842.29556854,0.00021967,2]
[400585328,1767733841201,-1000.0,0.00022,2]
[400585329,1767733841211,-975.12436298,0.00022164,2]
[400585330,1767733841220,-1000.0,0.000222,2]
[400585331,1767733841229,-821.07596009,0.00022287,2]
[400585332,1767733841239,-164.66,0.00022443,2]
[400585333,1767733841248,-1152.0,0.00022645,2]
[400585334,1767733841258,-3388.2,0.00022697,2]
[400585335,1767733841268,-1000.0,0.000227,2]
[400585336,1767733841278,-1000.0,0.00023,2]
[400585337,1767733841292,-2414.0,0.00023104,2]
[400585338,1767733841301,-1000.0,0.00023106,2]
[400585339,1767733841311,-1000.0,0.000232,2]
[400585340,1767733841321,-1264.7,0.00023227,2]
[400585341,1767733841332,-1000.0,0.00023382,2]
[400585342,1767733841341,-442.24,0.00023441,2]
[400585343,1767733841352,-1000.0,0.000237,2]
[400585344,1767733841362,-442.24,0.00023715,2]
[400585345,1767733841371,-395.72,0.00023828,2]
[400585346,1767733841381,-164.66,0.00023845,2]
[400585347,1767733841390,-235.42679364,0.00023989,2]
[400585348,1767733841430,-206.81320636,0.00023989,2]
[400585349,1767733841451,-1000.0,0.00024,2]
[400585350,1767733841460,-911.88292552,0.000242,2]
[400585351,1767733841491,-88.11707448,0.000242,2]
[400585352,1767733841500,-362.92767532,0.00024658,2]
[400585353,1767733841510,-1000.0,0.000247,2]
[400585354,1767733841519,-258.31,0.00024735,2]
[400585355,1767733841529,-167.15,0.00024759,2]
[400585356,1767733841538,-447.0,0.00024762,2]
[400585357,1767733841548,-3388.2,0.00024775,2]
[400585358,1767733841558,-547.38397341,0.0002479,2]
[400585359,1767733841569,-483.06704358,0.00024799,2]
[400585360,1767733841579,-500.0,0.00024799,2]
[400585361,1767733841590,-3000.0,0.00024799,2]
[400585362,1767733841599,-8585.51235588,0.000248,3]
[400585363,1767733841615,-330572.63143912,0.000248,3]
[400585364,1767733841626,-23662.1960787,0.0002489,3]
[400585365,1767733841635,-478.33803571,0.00024899,2]
[400585366,1767733841646,-2190.53543176,0.000249,3]
[400585367,1767733841656,-1000.0,0.00025,2]
[400585368,1767733841860,-4814.55666367,0.00025026,2]
[400585369,1767733841871,-14842.29556854,0.00025026,2]
[400585370,1767733841881,-1000.0,0.000252,2]
[400585371,1767733841890,-164.66,0.00025248,2]
[400585372,1767733841900,-1268.108,0.00025503,2]
[400585373,1767733841910,-438.455,0.00025503,2]
[400585374,1767733841919,-914.0,0.00025556,2]
[400585375,1767733841929,-1215.798,0.00025556,2]
[400585376,1767733841938,-4817.0,0.000256,2]
[400585377,1767733841947,-4914.11,0.000256,2]
[400585378,1767733841956,-2435.0,0.000256,2]
[400585379,1767733841966,-1000.0,0.000257,2]
[400585380,1767733841976,-1000.0,0.00026,2]
[400585381,1767733841986,-1000.0,0.000262,2]
[400585382,1767733841995,-152.09829773,0.00026404,2]
[400585383,1767733842005,-164.66,0.00026651,2]
[400585384,1767733842014,-1000.0,0.000267,2]
[400585385,1767733842024,-3388.2,0.00026852,2]
[400585386,1767733842034,-11371.69,0.00026968,2]
[400585387,1767733842043,-1000.0,0.00027,2]
[400585388,1767733842052,-1000.0,0.000272,2]
[400585389,1767733842063,-483.90356709,0.00027397,47]
[400585390,1767733842072,-313.6,0.00027397,6]
[400585391,1767733842082,-465.8,0.00027397,5]
[400585392,1767733842093,-339.98,0.00027397,30]
[400585393,1767733842103,-500.0,0.00027397,20]
[400585394,1767733842112,-150.0,0.00027397,5]
[400585395,1767733842122,-158.77343996,0.00027397,5]
[400585396,1767733842132,-172.18868972,0.00027412,2]
[400585397,1767733842141,-1000.0,0.000277,2]
[400585398,1767733842151,-500.0,0.00027799,2]
[400585399,1767733842160,-200.0,0.00027799,2]